fUSD/lending_fUSD_20250123
["ID","MTS","AMOUNT","RATE_DAILY","PERIOD"]
[350068071,1737598250105,-500.0,0.00019452,2]
[350068072,1737598250114,-500.0,0.00019452,2]
[350068073,1737598250122,-500.0,0.00019452,2]
[350068074,1737598250132,-500.0,0.00019452,2]
[350068075,1737598250140,-500.0,0.00019452,2]
[350068076,1737598250150,-24.40187264,0.00019452,2]
[350068077,1737598250161,-475.59812736,0.00019452,2]
[350068078,1737598250171,-463.39997048,0.00019452,2]
[350068079,1737598250185,-580.42002952,0.00019452,2]
[350068080,1737598250195,-905.62,0.00019452,2]
[350068081,1737598250204,-500.0,0.00019452,2]
[350068082,1737598250213,-500.0,0.00019452,2]
[350068083,1737598250222,-500.0,0.00019452,2]
[350068084,1737598250231,-795.77,0.00019452,2]
[350068085,1737598250240,-624.19,0.00019452,2]
[350068086,1737598250250,-500.0,0.00019452,2]
[350068087,1737598250259,-500.0,0.00019452,2]
[350068088,1737598250267,-500.0,0.00019452,2]
[350068089,1737598250276,-500.0,0.00019452,2]
[350068090,1737598250285,-500.0,0.00019452,2]
[350068091,1737598250294,-500.0,0.00019452,2]
[350068092,1737598250304,-1966.42,0.00019452,2]
[350068093,1737598250313,-652.67,0.00019452,2]
[350068094,1737598250322,-327.34382214,0.00019452,2]
[350068095,1737598250331,-1474.72,0.00019452,2]
[350068096,1737598250341,-500.0,0.00019452,2]
[350068097,1737598250352,-839.45,0.00019452,2]
[350068098,1737598250361,-1114.82,0.00019452,2]
[350068099,1737598250370,-695.67,0.00019452,2]
[350068100,1737598250379,-500.0,0.00019452,2]
[350068101,1737598250389,-500.0,0.00019452,2]
[350068102,1737598250399,-780.12,0.00019452,2]
[350068103,1737598250410,-1160.06,0.00019452,2]
[350068104,1737598250419,-500.0,0.00019452,2]
[350068105,1737598250429,-500.0,0.00019452,2]
[350068106,1737598250439,-500.0,0.00019452,2]
[350068107,1737598250448,-1941.87,0.00019452,2]
[350068108,1737598250458,-500.0,0.00019452,2]
[350068109,1737598250467,-629.0,0.00019452,2]
[350068110,1737598250477,-1951.20416786,0.00019521,2]
[350068111,1737598250487,-1951.20416786,0.00019624,2]
[350068112,1737598250497,-4001.85684245,0.00019705,2]
[350068113,1737598250509,-8320.54,0.00019714,2]
[350068114,1737598250522,-1000.0,0.00019721,2]
[350068115,1737598250533,-151.60739831,0.00019725,2]
[350068116,1737598250542,-500.0,0.00019725,2]
[350068117,1737598250552,-497.31343465,0.00019726,2]
[350068118,1737598250564,-326.062984,0.00019726,2]
[350068119,1737598250576,-464.187533,0.00019726,2]
[350068120,1737598250587,-500.0,0.00019726,2]
[350068121,1737598250597,-500.0,0.00019726,2]
[350068122,1737598250607,-500.0,0.00019726,2]
[350068123,1737598250619,-300.0,0.00019726,2]
[350068124,1737598250629,-500.0,0.00019726,2]
[350068125,1737598250638,-500.0,0.00019726,2]
[350068126,1737598250648,-500.0,0.00019726,2]
[350068127,1737598250658,-500.0,0.00019726,2]
[350068128,1737598250668,-303.04185885,0.00019726,2]
[350068129,1737598250677,-504.52013155,0.00019726,2]
[350068130,1737598250688,-500.0,0.00019726,2]
[350068131,1737598250697,-543.07000741,0.00019726,2]
[350068132,1737598250709,-511.94079772,0.00019726,2]
[350068133,1737598250718,-500.0,0.00019726,2]
[350068134,1737598250727,-500.0,0.00019726,2]
[350068135,1737598250738,-514.12263882,0.00019726,2]
[350068136,1737598250749,-298.90817338,0.00019726,2]
[350068137,1737598250759,-500.0,0.00019726,2]
[350068138,1737598250768,-532.52,0.00019726,2]
[350068139,1737598250778,-255.82548903,0.00019726,2]
[350068140,1737598250787,-209.37252349,0.00019726,2]
[350068141,1737598251061,-500.0,0.00019178,2]
[350068142,1737598251072,-500.0,0.00019178,2]
[350068143,1737598251081,-500.0,0.00019452,2]
[350068144,1737598251090,-290.62747651,0.00019726,2]
[350068145,1737598251099,-508.66970457,0.00019726,2]
[350068146,1737598251108,-500.0,0.00019726,2]
[350068147,1737598251117,-500.0,0.00019726,2]
[350068148,1737598251125,-100.70251892,0.00019726,2]
[350068149,1737598251142,-715.2324515,0.00019726,2]
[350068150,1737598251275,-392.68502958,0.00019726,2]
[350068151,1737598251284,-500.0,0.00019726,2]
[350068152,1737598251293,-500.0,0.00019726,2]
[350068153,1737598251302,-512.55121164,0.00019726,2]
[350068154,1737598251311,-500.0,0.00019726,2]
[350068155,1737598251321,-408.52006806,0.00019726,2]
[350068156,1737598251330,-500.0,0.00019726,2]
[350068157,1737598251340,-500.0,0.00019726,2]
[350068158,1737598251349,-500.0,0.00019726,2]
[350068159,1737598251359,-503.08200428,0.00019726,2]
[350068160,1737598251368,-500.0,0.00019726,2]
[350068161,1737598251378,-500.0,0.00019726,2]
[350068162,1737598251387,-500.0,0.00019726,2]
[350068163,1737598251396,-500.0,0.00019726,2]
[350068164,1737598251405,-500.0,0.00019726,2]
[350068165,1737598251415,-500.0,0.00019726,2]
[350068166,1737598251425,-500.0,0.00019726,2]
[350068167,1737598251434,-500.0,0.00019726,2]
[350068168,1737598251444,-500.0,0.00019726,2]
[350068169,1737598251455,-500.0,0.00019726,2]
[350068170,1737598251464,-500.0,0.00019726,2]
[350068171,1737598251473,-500.0,0.00019726,2]
[350068172,1737598251483,-500.0,0.00019726,2]
[350068173,1737598251492,-500.0,0.00019726,2]
[350068174,1737598251503,-500.0,0.00019726,2]
[350068175,1737598251513,-500.0,0.00019726,2]
[350068176,1737598251522,-500.0,0.00019726,2]
[350068177,1737598251534,-500.0,0.00019726,2]
[350068178,1737598251543,-500.0,0.00019726,2]
[350068179,1737598251556,-500.0,0.00019726,2]
[350068180,1737598251566,-500.0,0.00019726,2]
[350068181,1737598251576,-500.0,0.00019726,2]
[350068182,1737598251585,-500.0,0.00019726,2]
[350068183,1737598251595,-500.0,0.00019726,2]
[350068184,1737598251605,-500.0,0.00019726,2]
[350068185,1737598251615,-591.65,0.00019726,2]
[350068186,1737598251625,-500.0,0.00019726,2]
[350068187,1737598251635,-500.0,0.00019726,2]
[350068188,1737598251646,-598.59,0.00019726,2]
[350068189,1737598251656,-500.0,0.00019726,2]
[350068190,1737598251666,-500.0,0.00019726,2]
[350068191,1737598251675,-511.06,0.00019726,2]
[350068192,1737598251685,-500.0,0.00019726,2]
[350068193,1737598251694,-500.0,0.00019726,2]
[350068194,1737598251704,-500.0,0.00019726,2]
[350068195,1737598251714,-500.0,0.00019726,2]
[350068196,1737598251724,-500.0,0.00019726,2]
[350068197,1737598251733,-500.0,0.00019726,2]
[350068198,1737598251894,-500.0,0.00019726,2]
[350068199,1737598251905,-500.0,0.00019726,2]
[350068200,1737598251916,-348.16675758,0.00019726,2]
[350068201,1737598251927,-500.0,0.00019726,2]
[350068202,1737598251937,-626.68,0.00019726,2]
[350068203,1737598251947,-500.0,0.00019726,2]
[350068204,1737598251957,-569.54,0.00019726,2]
[350068205,1737598251966,-500.0,0.00019726,2]
[350068206,1737598251976,-500.0,0.00019726,2]
[350068207,1737598251986,-500.0,0.00019726,2]
[350068208,1737598251996,-500.0,0.00019726,2]
[350068209,1737598252010,-500.0,0.00019726,2]
[350068210,1737598252021,-500.0,0.00019726,2]
[350068211,1737598252030,-669.91,0.00019726,2]
[350068212,1737598252041,-590.81,0.00019726,2]
[350068213,1737598252052,-500.0,0.00019726,2]
[350068214,1737598252063,-500.0,0.00019726,2]
[350068215,1737598252074,-500.0,0.00019726,2]
[350068216,1737598252084,-626.77054376,0.00019726,2]
[350068217,1737598252094,-539.23,0.00019726,2]
[350068218,1737598252106,-500.0,0.00019726,2]
[350068219,1737598252115,-518.69576399,0.00019726,2]
[350068220,1737598252125,-609.49,0.00019726,2]
[350068221,1737598252135,-652.2,0.00019726,2]
[350068222,1737598252145,-500.0,0.00019726,2]
[350068223,1737598252155,-500.0,0.00019726,2]
[350068224,1737598252165,-500.0,0.00019726,2]
[350068225,1737598252175,-500.0,0.00019726,2]
[350068226,1737598252185,-500.0,0.00019726,2]
[350068227,1737598252195,-500.0,0.00019726,2]
[350068228,1737598252205,-500.0,0.00019726,2]
[350068229,1737598252215,-560.55,0.00019726,2]
[350068230,1737598252225,-500.0,0.00019726,2]
[350068231,1737598252235,-500.0,0.00019726,2]
[350068232,1737598252246,-500.0,0.00019726,2]
[350068233,1737598252264,-500.0,0.00019726,2]
[350068234,1737598252277,-500.0,0.00019726,2]
[350068235,1737598252290,-500.0,0.00019726,2]
[350068236,1737598252303,-500.0,0.00019726,2]
[350068237,1737598252315,-585.91,0.00019726,2]
[350068238,1737598252326,-500.0,0.00019726,2]
[350068239,1737598252337,-399.65939844,0.00019726,2]
[350068240,1737598252358,-100.34060156,0.00019726,2]
[350068241,1737598252371,-290.04922907,0.00019726,2]
[350068242,1737598252384,-209.95077093,0.00019726,2]
[350068243,1737598252394,-100.35939898,0.00019726,2]
[350068244,1737598252443,-399.64060102,0.00019726,2]
[350068245,1737598252453,-500.0,0.00019726,2]
[350068246,1737598252465,-500.0,0.00019726,2]
[350068247,1737598252475,-760.92,0.00019726,2]
[350068248,1737598252487,-500.0,0.00019726,2]
[350068249,1737598252498,-500.0,0.00019726,2]
[350068250,1737598252514,-500.0,0.00019726,2]
[350068251,1737598252528,-709.5,0.00019726,2]
[350068252,1737598252538,-500.0,0.00019726,2]
[350068253,1737598252549,-259.44236218,0.00019726,2]
[350068254,1737598252565,-240.55763782,0.00019726,2]
[350068255,1737598252575,-500.0,0.00019726,2]
[350068256,1737598252585,-500.0,0.00019726,2]
[350068257,1737598252597,-783.44,0.00019726,2]
[350068258,1737598252608,-500.0,0.00019726,2]
[350068259,1737598252618,-734.61,0.00019726,2]
[350068260,1737598252629,-302.57145485,0.00019726,2]
[350068261,1737598252643,-292.88854515,0.00019726,2]
[350068262,1737598252654,-983.91,0.00019726,2]
[350068263,1737598252664,-500.0,0.00019726,2]
[350068264,1737598252675,-500.0,0.00019726,2]
[350068265,1737598252685,-500.0,0.00019726,2]
[350068266,1737598252695,-1021.08,0.00019726,2]
[350068267,1737598252706,-595.13,0.00019726,2]
[350068268,1737598252716,-1861.17,0.00019726,2]
[350068269,1737598252726,-500.0,0.00019726,2]
[350068270,1737598252735,-270.71210477,0.00019726,2]
[350068271,1737598252825,-229.28789523,0.00019726,2]
[350068272,1737598252835,-2273.74,0.00019726,2]
[350068273,1737598252845,-500.0,0.00019726,2]
[350068274,1737598252855,-926.57,0.00019726,2]
[350068275,1737598252865,-517.87758572,0.00019726,2]
[350068276,1737598252874,-499.76100207,0.00019726,2]
[350068277,1737598252887,-0.23899793,0.00019726,2]
[350068278,1737598252897,-500.0,0.00019726,2]
[350068279,1737598252907,-4005.95,0.00019726,2]
[350068280,1737598252917,-500.0,0.00019726,2]
[350068281,1737598252927,-500.0,0.00019726,2]
[350068282,1737598252937,-934.73,0.00019726,2]
[350068283,1737598252946,-500.0,0.00019726,2]
[350068284,1737598252956,-1366.9,0.00019726,2]
[350068285,1737598252965,-638.91,0.00019726,2]
[350068286,1737598252975,-500.0,0.00019726,2]
[350068287,1737598252984,-500.0,0.00019726,2]
[350068288,1737598252994,-701.57,0.00019726,2]
[350068289,1737598253005,-500.0,0.00019726,2]
[350068290,1737598253015,-253.19935468,0.00019726,2]
[350068291,1737598253026,-780.6,0.00019726,2]
[350068292,1737598253036,-500.0,0.00019726,2]
[350068293,1737598253045,-1079.5,0.00019726,2]
[350068294,1737598253055,-500.0,0.00019726,2]
[350068295,1737598253064,-500.0,0.00019726,2]
[350068296,1737598253074,-2807.93,0.00019726,2]
[350068297,1737598253083,-500.0,0.00019726,2]
[350068298,1737598253094,-1009.59,0.00019726,2]
[350068299,1737598253103,-500.0,0.00019726,2]
[350068300,1737598253113,-501.49,0.00019726,2]
[350068301,1737598253123,-1169.11,0.00019726,2]
[350068302,1737598253133,-500.0,0.00019726,2]
[350068303,1737598253143,-636.54,0.00019726,2]
[350068304,1737598253153,-490.0,0.00019726,2]
[350068305,1737598253163,-958.43,0.00019726,2]
[350068306,1737598253173,-544.56,0.00019726,2]
[350068307,1737598253183,-580.23,0.00019726,2]
[350068308,1737598253193,-1894.86,0.00019726,2]
[350068309,1737598253203,-1614.96,0.00019726,2]
[350068310,1737598253213,-500.0,0.00019726,2]
[350068311,1737598253223,-500.0,0.00019726,2]
[350068312,1737598253233,-500.0,0.00019726,2]
[350068313,1737598253243,-500.0,0.00019726,2]
[350068314,1737598253256,-1825.68,0.00019726,2]
[350068315,1737598253266,-500.0,0.00019726,2]
[350068316,1737598253276,-1665.25,0.00019726,2]
[350068317,1737598253287,-1562.79,0.00019726,2]
[350068318,1737598253296,-3410.84,0.00019726,2]
[350068319,1737598253306,-781.49,0.00019726,2]
[350068320,1737598253316,-521.94,0.00019726,2]
[350068321,1737598253325,-715.04,0.00019726,2]
[350068322,1737598253335,-828.54,0.00019726,2]
[350068323,1737598253345,-1023.25,0.00019726,2]
[350068324,1737598253355,-1545.44,0.00019726,2]
[350068325,1737598253364,-999.21,0.00019726,2]
[350068326,1737598253373,-595.45,0.00019726,2]
[350068327,1737598253383,-500.0,0.00019726,2]
[350068328,1737598253392,-941.03,0.00019726,2]
[350068329,1737598253402,-1436.85,0.00019726,2]
[350068330,1737598253411,-544.27955278,0.00019726,2]
[350068331,1737598253421,-1139.26,0.00019726,2]
[350068332,1737598253431,-1885.46,0.00019726,2]
[350068333,1737598253441,-500.0,0.00019726,2]
[350068334,1737598253450,-500.0,0.00019726,2]
[350068335,1737598253460,-508.75,0.00019726,2]
[350068336,1737598253470,-697.25,0.00019726,2]
[350068337,1737598253480,-1204.01,0.00019726,2]
[350068338,1737598253490,-1170.11,0.00019726,2]
[350068339,1737598253502,-2156.54,0.00019726,2]
[350068340,1737598253514,-954.95,0.00019726,2]
[350068341,1737598253527,-2857.56,0.00019726,2]
[350068342,1737598253536,-500.0,0.00019726,2]
[350068343,1737598253546,-500.0,0.00019726,2]
[350068344,1737598253556,-500.0,0.00019726,2]
[350068345,1737598253568,-222.12235932,0.00019726,2]
[350068346,1737598253579,-1781.26,0.00019726,2]
[350068347,1737598253589,-613.33,0.00019726,2]
[350068348,1737598253599,-536.15352252,0.00019726,2]
[350068349,1737598253610,-500.0,0.00019726,2]
[350068350,1737598253620,-832.7,0.00019726,2]
[350068351,1737598253630,-1000.0,0.00019726,2]
[350068352,1737598253640,-709.55,0.00019726,2]
[350068353,1737598253650,-534.8,0.00019726,2]
[350068354,1737598253659,-518.41364102,0.00019726,2]
[350068355,1737598253669,-1002.47,0.00019726,2]
[350068356,1737598253679,-902.21,0.00019726,2]
[350068357,1737598253688,-857.13,0.00019726,2]
[350068358,1737598253697,-500.0,0.00019726,2]
[350068359,1737598253706,-825.39,0.00019726,2]
[350068360,1737598253716,-1658.23,0.00019726,2]
[350068361,1737598253725,-500.0,0.00019726,2]
[350068362,1737598253734,-500.0,0.00019726,2]
[350068363,1737598253744,-1634.67,0.00019726,2]
[350068364,1737598253756,-553.31,0.00019726,2]
[350068365,1737598253765,-500.0,0.00019726,2]
[350068366,1737598253775,-1490.03,0.00019726,2]
[350068367,1737598253784,-500.0,0.00019726,2]
[350068368,1737598253793,-500.0,0.00019726,2]
[350068369,1737598253803,-634.28,0.00019726,2]
[350068370,1737598253812,-2233.11,0.00019726,2]
[350068371,1737598253821,-1027.05,0.00019726,2]
[350068372,1737598253831,-770.23,0.00019726,2]
[350068373,1737598253840,-520.02,0.00019726,2]
[350068374,1737598253849,-500.0,0.00019726,2]
[350068375,1737598253858,-1698.92,0.00019726,2]
[350068376,1737598253867,-500.0,0.00019726,2]
[350068377,1737598253876,-500.0,0.00019726,2]
[350068378,1737598253886,-500.0,0.00019726,2]
[350068379,1737598253896,-683.74,0.00019726,2]
[350068380,1737598253905,-500.0,0.00019726,2]
[350068381,1737598253914,-500.0,0.00019726,2]
[350068382,1737598253923,-1618.77,0.00019726,2]
[350068383,1737598253932,-500.0,0.00019726,2]
[350068384,1737598253941,-1198.6,0.00019726,2]
[350068385,1737598253951,-500.0,0.00019726,2]
[350068386,1737598253959,-500.0,0.00019726,2]
[350068387,1737598253969,-661.89,0.00019726,2]
[350068388,1737598253978,-500.0,0.00019726,2]
[350068389,1737598253987,-2270.26,0.00019726,2]
[350068390,1737598253996,-638.8,0.00019726,2]
[350068391,1737598254007,-500.0,0.00019726,2]
[350068392,1737598254016,-500.0,0.00019726,2]
[350068393,1737598254024,-500.0,0.00019726,2]
[350068394,1737598254034,-500.0,0.00019726,2]
[350068395,1737598254043,-500.0,0.00019726,2]
[350068396,1737598254052,-500.0,0.00019726,2]
[350068397,1737598254061,-500.0,0.00019726,2]
[350068398,1737598254071,-1043.82,0.00019726,2]
[350068399,1737598254079,-905.62,0.00019726,2]
[350068400,1737598254088,-500.0,0.00019726,2]
[350068401,1737598254097,-500.0,0.00019726,2]
[350068402,1737598254106,-500.0,0.00019726,2]
[350068403,1737598254115,-624.19,0.00019726,2]
[350068404,1737598254124,-500.0,0.00019726,2]
[350068405,1737598254133,-795.77,0.00019726,2]
[350068406,1737598254142,-500.0,0.00019726,2]
[350068407,1737598254154,-161.542149,0.00019726,2]
[350068408,1737598254163,-500.0,0.00019726,2]
[350068409,1737598254172,-500.0,0.00019726,2]
[350068410,1737598254183,-500.0,0.00019726,2]
[350068411,1737598254193,-500.0,0.00019726,2]
[350068412,1737598254204,-1966.42,0.00019726,2]
[350068413,1737598254216,-652.67,0.00019726,2]
[350068414,1737598254226,-1474.72,0.00019726,2]
[350068415,1737598254236,-500.0,0.00019726,2]
[350068416,1737598254246,-839.45,0.00019726,2]
[350068417,1737598254258,-1114.82,0.00019726,2]
[350068418,1737598254267,-695.67,0.00019726,2]
[350068419,1737598254276,-500.0,0.00019726,2]
[350068420,1737598254286,-500.0,0.00019726,2]
[350068421,1737598254295,-780.12,0.00019726,2]
[350068422,1737598254304,-1160.06,0.00019726,2]
[350068423,1737598254315,-500.0,0.00019726,2]
[350068424,1737598254327,-500.0,0.00019726,2]
[350068425,1737598254338,-500.0,0.00019726,2]
[350068426,1737598254348,-1941.87,0.00019726,2]
[350068427,1737598254357,-500.0,0.00019726,2]
[350068428,1737598254366,-629.0,0.00019726,2]
[350068429,1737598254376,-500.0,0.00019726,2]
[350068430,1737598254385,-1951.20416786,0.00019728,2]
[350068431,1737598254394,-1951.20416786,0.00019831,2]
[350068432,1737598254403,-174.89384677,0.000199,2]
[350068433,1737598254412,-1500.0,0.000199,7]
[350068434,1737598254422,-200.0,0.00019904,2]
[350068435,1737598254431,-1951.20416786,0.00019934,2]
[350068436,1737598254440,-500.0,0.00019999,2]
[350068437,1737598254450,-464.187533,0.0002,2]
[350068438,1737598254459,-160.0,0.0002,30]
[350068439,1737598254468,-500.0,0.0002,2]
[350068440,1737598254477,-500.0,0.0002,2]
[350068441,1737598254487,-500.0,0.0002,2]
[350068442,1737598254496,-500.0,0.0002,2]
[350068443,1737598254510,-500.0,0.0002,2]
[350068444,1737598254520,-500.0,0.0002,2]
[350068445,1737598254530,-257.39077891,0.0002,2]
[350068446,1737598254541,-500.0,0.0002,2]
[350068447,1737598254551,-500.0,0.0002,2]
[350068448,1737598254561,-500.0,0.0002,2]
[350068449,1737598254571,-532.52,0.0002,2]
[350068450,1737598254580,-500.0,0.0002,2]
[350068451,1737598254589,-500.0,0.0002,2]
[350068452,1737598254599,-500.0,0.0002,2]
[350068453,1737598254608,-1208.62,0.0002,2]
[350068454,1737598254618,-500.0,0.0002,2]
[350068455,1737598254627,-500.0,0.0002,2]
[350068456,1737598254636,-500.0,0.0002,2]
[350068457,1737598254646,-500.0,0.0002,2]
[350068458,1737598254655,-500.0,0.0002,2]
[350068459,1737598254663,-500.0,0.0002,2]
[350068460,1737598254672,-500.0,0.0002,2]
[350068461,1737598254681,-500.0,0.0002,2]
[350068462,1737598254690,-500.0,0.0002,2]
[350068463,1737598254700,-500.0,0.0002,2]
[350068464,1737598254709,-500.0,0.0002,2]
[350068465,1737598254718,-500.0,0.0002,2]
[350068466,1737598254727,-481.79552049,0.0002,2]
[350068467,1737598254736,-500.0,0.0002,2]
[350068468,1737598254745,-500.0,0.0002,2]
[350068469,1737598254759,-519.16228559,0.0002,2]
[350068470,1737598254769,-512.67217893,0.0002,2]
[350068471,1737598254779,-500.0,0.0002,2]
[350068472,1737598254789,-500.0,0.0002,2]
[350068473,1737598254798,-500.0,0.0002,2]
[350068474,1737598254807,-500.0,0.0002,2]
[350068475,1737598254816,-500.0,0.0002,2]
[350068476,1737598254826,-500.0,0.0002,2]
[350068477,1737598254835,-500.0,0.0002,2]
[350068478,1737598254844,-500.0,0.0002,2]
[350068479,1737598254853,-500.0,0.0002,2]
[350068480,1737598254862,-500.0,0.0002,2]
[350068481,1737598254870,-591.65,0.0002,2]
[350068482,1737598254880,-500.0,0.0002,2]
[350068483,1737598254890,-500.0,0.0002,2]
[350068484,1737598254899,-598.59,0.0002,2]
[350068485,1737598254907,-500.0,0.0002,2]
[350068486,1737598254917,-500.0,0.0002,2]
[350068487,1737598254926,-511.06,0.0002,2]
[350068488,1737598254935,-500.0,0.0002,2]
[350068489,1737598254944,-500.0,0.0002,2]
[350068490,1737598254953,-500.0,0.0002,2]
[350068491,1737598254961,-500.0,0.0002,2]
[350068492,1737598254970,-598.35859516,0.0002,2]
[350068493,1737598254980,-500.0,0.0002,2]
[350068494,1737598254990,-500.0,0.0002,2]
[350068495,1737598254999,-626.68,0.0002,2]
[350068496,1737598255011,-500.0,0.0002,2]
[350068497,1737598255020,-569.54,0.0002,2]
[350068498,1737598255029,-219.93,0.0002,2]
[350068499,1737598255038,-500.0,0.0002,2]
[350068500,1737598255048,-500.0,0.0002,2]
[350068501,1737598255059,-500.0,0.0002,2]
[350068502,1737598255069,-669.91,0.0002,2]
[350068503,1737598255213,-506.65,0.0002,2]
[350068504,1737598255223,-590.81,0.0002,2]
[350068505,1737598255233,-500.0,0.0002,2]
[350068506,1737598255243,-500.0,0.0002,2]
[350068507,1737598255254,-500.0,0.0002,2]
[350068508,1737598255263,-539.23,0.0002,2]
[350068509,1737598255273,-500.0,0.0002,2]
[350068510,1737598255282,-609.49,0.0002,2]
[350068511,1737598255291,-652.2,0.0002,2]
[350068512,1737598255301,-500.0,0.0002,2]
[350068513,1737598255310,-522.59549447,0.0002,2]
[350068514,1737598255320,-500.0,0.0002,2]
[350068515,1737598255329,-500.0,0.0002,2]
[350068516,1737598255338,-500.0,0.0002,2]
[350068517,1737598255347,-500.0,0.0002,2]
[350068518,1737598255356,-560.55,0.0002,2]
[350068519,1737598255365,-500.0,0.0002,2]
[350068520,1737598255374,-500.0,0.0002,2]
[350068521,1737598255382,-513.60741864,0.0002,2]
[350068522,1737598255391,-500.0,0.0002,2]
[350068523,1737598255400,-500.0,0.0002,2]
[350068524,1737598255410,-500.0,0.0002,2]
[350068525,1737598255419,-500.0,0.0002,2]
[350068526,1737598255428,-585.91,0.0002,2]
[350068527,1737598255438,-500.0,0.0002,2]
[350068528,1737598255447,-500.0,0.0002,2]
[350068529,1737598255457,-500.0,0.0002,2]
[350068530,1737598255467,-500.0,0.0002,2]
[350068531,1737598255476,-500.0,0.0002,2]
[350068532,1737598255485,-500.0,0.0002,2]
[350068533,1737598255495,-760.92,0.0002,2]
[350068534,1737598255506,-500.0,0.0002,2]
[350068535,1737598255520,-500.0,0.0002,2]
[350068536,1737598255529,-500.0,0.0002,2]
[350068537,1737598255539,-709.5,0.0002,2]
[350068538,1737598255548,-500.0,0.0002,2]
[350068539,1737598255558,-500.0,0.0002,2]
[350068540,1737598255568,-500.0,0.0002,2]
[350068541,1737598255578,-646.72,0.0002,2]
[350068542,1737598255587,-783.44,0.0002,2]
[350068543,1737598255598,-500.0,0.0002,2]
[350068544,1737598255609,-734.61,0.0002,2]
[350068545,1737598255618,-983.91,0.0002,2]
[350068546,1737598255630,-500.0,0.0002,2]
[350068547,1737598255639,-500.0,0.0002,2]
[350068548,1737598255648,-1021.08,0.0002,2]
[350068549,1737598255657,-595.13,0.0002,2]
[350068550,1737598255667,-1861.17,0.0002,2]
[350068551,1737598255675,-551.22559577,0.0002,2]
[350068552,1737598255685,-500.0,0.0002,2]
[350068553,1737598255694,-2273.74,0.0002,2]
[350068554,1737598255703,-500.0,0.0002,2]
[350068555,1737598255713,-926.57,0.0002,2]
[350068556,1737598255722,-500.0,0.0002,2]
[350068557,1737598255731,-500.0,0.0002,2]
[350068558,1737598255740,-4005.95,0.0002,2]
[350068559,1737598255749,-500.0,0.0002,2]
[350068560,1737598255762,-934.73,0.0002,2]
[350068561,1737598255772,-500.0,0.0002,2]
[350068562,1737598255781,-1366.9,0.0002,2]
[350068563,1737598255790,-638.91,0.0002,2]
[350068564,1737598255799,-500.0,0.0002,2]
[350068565,1737598255808,-500.0,0.0002,2]
[350068566,1737598255817,-701.57,0.0002,2]
[350068567,1737598255826,-500.0,0.0002,2]
[350068568,1737598255835,-780.6,0.0002,2]
[350068569,1737598255844,-423.35632094,0.0002,2]
[350068570,1737598255853,-1079.5,0.0002,2]